bitfinex-derivatives/quotes_BTCF0:USTF0_20241125
["timestamp","ask_amount","ask_price","bid_price","bid_amount"]
[1732525743465,0.0492686,98612.0,98611.0,1.945e-05]
[1732525743669,0.18167935,98612.0,98611.0,1.945e-05]
[1732525743858,0.0492686,98612.0,98611.0,1.945e-05]
[1732525744167,0.0492686,98612.0,98594.0,0.3608]
[1732525744168,0.050651,98611.0,98594.0,0.3608]
[1732525744469,0.050659,98595.0,98594.0,0.3608]
[1732525744662,0.0492686,98595.0,98587.0,0.00189]
[1732525744966,0.050661,98591.0,98587.0,0.052553]
[1732525745160,0.0492686,98590.0,98588.0,0.00011088]
[1732525745566,0.0492686,98589.0,98588.0,0.00011088]
[1732525746581,0.15143547,98592.0,98588.0,0.00011088]
[1732525746757,0.0329,98594.0,98592.0,0.05066]
[1732525747066,0.0329,98594.0,98588.0,0.00011088]
[1732525747067,0.04927865,98593.0,98588.0,0.00011088]
[1732525747257,0.04927865,98593.0,98591.0,0.05066]
[1732525748167,0.04927865,98593.0,98591.0,0.18338]
[1732525748466,0.0304,98610.0,98595.0,0.050659]
[1732525748467,0.15144477,98596.0,98595.0,0.050659]
[1732525748663,0.15144477,98597.0,98595.0,0.050659]
[1732525748856,0.0333,98609.0,98597.0,0.050658]
[1732525748857,0.15144477,98598.0,98597.0,0.050658]
[1732525749062,0.15142592,98602.0,98601.0,0.050656]
[1732525749271,0.0333,98609.0,98601.0,0.49352]
[1732525749572,0.15142168,98605.0,98604.0,0.050654]
[1732525750262,0.04927084,98605.0,98604.0,0.00811]
[1732525750469,0.0333,98609.0,98606.0,0.050653]
[1732525750669,0.02013404,98608.0,98606.0,0.050653]
[1732525750863,0.2150186,98609.0,98604.0,0.00811]
[1732525750864,0.07078704,98607.0,98604.0,0.00811]
[1732525751063,0.07078704,98606.0,98604.0,0.00811]
[1732525751266,0.05103404,98605.0,98604.0,0.00811]
[1732525751470,0.05103404,98605.0,98592.0,0.05066]
[1732525751471,0.05103404,98605.0,98592.0,0.13272]
[1732525751671,0.050659,98595.0,98592.0,0.13272]
[1732525751966,0.02013404,98594.0,98592.0,0.18338]
[1732525752164,0.02013404,98593.0,98592.0,0.18338]
[1732525753169,0.02013404,98593.0,98592.0,0.05066]
[1732525753767,0.07079404,98593.0,98588.0,0.00011088]
[1732525754082,0.050662,98590.0,98588.0,0.00011088]
[1732525754273,0.05085469,98589.0,98588.0,0.00011088]
[1732525754466,0.0306,98589.0,98588.0,0.00011088]
[1732525754667,0.050662,98588.0,98587.0,0.00188423]
[1732525754868,0.07655714,98588.0,98587.0,0.00188423]
[1732525755072,0.08681119,98588.0,98587.0,0.00188423]
[1732525755380,0.08680659,98588.0,98587.0,0.00188423]
[1732525755674,0.08680659,98588.0,98571.0,0.00056]
[1732525755675,0.05067,98573.0,98571.0,0.00056]
[1732525755875,0.0306,98589.0,98570.0,0.13424156]
[1732525755876,0.07088012,98572.0,98570.0,0.13424156]
[1732525756070,0.03614459,98571.0,98570.0,0.00152156]
[1732525756767,0.03614459,98571.0,98570.0,0.00161401]
[1732525756968,0.12704099,98571.0,98570.0,0.00161401]
[1732525757168,0.03614459,98571.0,98570.0,0.00161401]
[1732525758377,0.050671,98572.0,98570.0,0.00161401]
[1732525758573,0.18946628,98571.0,98570.0,0.00161401]
[1732525758777,0.22066628,98571.0,98570.0,0.00161401]
[1732525759178,0.03804829,98571.0,98570.0,0.00161401]
[1732525759574,0.08871929,98571.0,98570.0,0.00161401]
[1732525760971,0.03804829,98571.0,98570.0,0.00161401]
[1732525761880,0.02778114,98571.0,98570.0,0.00161401]
[1732525762075,0.03805081,98571.0,98570.0,0.00161401]
[1732525762771,0.03805081,98571.0,98570.0,9.245e-05]
[1732525762978,0.08872381,98571.0,98570.0,9.245e-05]
[1732525763585,0.09506217,98571.0,98570.0,9.245e-05]
[1732525763879,0.09506217,98571.0,98570.0,0.05076645]
[1732525763880,0.04438917,98571.0,98570.0,0.05076645]
[1732525764079,0.03805081,98571.0,98570.0,0.03895021]
[1732525764968,0.03909373,98571.0,98570.0,0.03895021]
[1732525765171,0.03909373,98571.0,98570.0,0.62273387]
[1732525765376,0.0109573,98571.0,98570.0,0.21755387]
[1732525765582,0.09073039,98584.0,98577.0,0.05067]
[1732525765778,0.03967445,98583.0,98580.0,0.3608]
[1732525766079,0.03967445,98583.0,98577.0,0.05067]
[1732525766080,0.04608177,98582.0,98577.0,0.18339]
[1732525766272,0.04608177,98581.0,98577.0,0.13272]
[1732525766467,0.03974444,98580.0,98579.0,0.050669]
[1732525767083,0.03974444,98580.0,98579.0,0.183389]
[1732525767467,0.03974444,98580.0,98579.0,0.050669]
[1732525768682,0.02198968,98580.0,98579.0,0.050669]
[1732525769383,0.02077828,98580.0,98579.0,0.050669]
[1732525769577,0.050673,98571.0,98570.0,0.03895021]
[1732525769777,0.050673,98571.0,98570.0,9.245e-05]
[1732525769778,0.07145128,98571.0,98570.0,9.245e-05]
[1732525770770,0.02077828,98571.0,98570.0,9.245e-05]
[1732525770978,0.02088822,98571.0,98570.0,9.245e-05]
[1732525771281,0.03767344,98571.0,98570.0,0.00809991]
[1732525771671,0.02088822,98571.0,98570.0,0.00809991]
[1732525772282,0.02088822,98571.0,98570.0,0.00817783]
[1732525772682,0.02088822,98571.0,98570.0,0.04708608]
[1732525772981,0.02088822,98571.0,98570.0,0.00817783]
[1732525772982,0.02094099,98571.0,98570.0,0.00817783]
[1732525773380,0.02094099,98571.0,98570.0,0.02224783]
[1732525774271,0.02094099,98571.0,98570.0,0.335763]
[1732525774475,0.02094099,98571.0,98570.0,0.15496783]
[1732525775287,0.02094099,98571.0,98570.0,0.02224783]
[1732525776790,0.02068018,98571.0,98570.0,0.02224783]
[1732525778681,0.3608,98578.0,98570.0,0.02224783]
[1732525778682,0.3608,98578.0,98570.0,0.15496783]
[1732525778881,0.3608,98578.0,98577.0,0.05067]
[1732525779782,0.45574079,98586.0,98577.0,0.23151309]
[1732525780086,0.45574079,98586.0,98585.0,0.050666]
[1732525780386,0.3648,98586.0,98585.0,0.050666]
[1732525780590,0.0950052,98586.0,98585.0,0.050666]
[1732525780885,0.004,98586.0,98585.0,0.050666]
[1732525781284,0.0321,98589.0,98588.0,0.050665]
[1732525781285,0.004,98589.0,98588.0,0.050665]
[1732525781486,0.004,98589.0,98588.0,0.411465]
[1732525781886,0.15541799,98599.0,98588.0,0.411465]
[1732525782185,0.004,98599.0,98598.0,0.05066]
[1732525782390,0.05327664,98599.0,98598.0,0.05066]
[1732525783392,0.004,98599.0,98598.0,0.05066]
[1732525783887,0.05327658,98599.0,98598.0,0.05066]
[1732525784288,0.050662,98594.0,98591.0,0.050663]
[1732525784490,0.07947748,98593.0,98591.0,0.050663]
[1732525784681,0.04927748,98592.0,98591.0,0.050663]
[1732525784882,0.08087748,98592.0,98591.0,0.050663]
[1732525785087,0.38515748,98592.0,98591.0,0.050663]
[1732525785488,0.38515748,98592.0,98580.0,0.40075032]
[1732525785788,0.15166512,98582.0,98581.0,0.050668]
[1732525786386,0.15166512,98583.0,98581.0,0.050668]
[1732525786590,0.15166512,98584.0,98583.0,0.050667]
[1732525786892,0.15166075,98584.0,98583.0,0.050667]
[1732525787096,0.15166212,98584.0,98581.0,0.050668]
[1732525787390,0.15166212,98584.0,98582.0,0.050668]
[1732525787590,0.15166212,98584.0,98580.0,0.40075032]
[1732525787591,0.15166212,98586.0,98580.0,0.40075032]
[1732525787892,0.09099752,98588.0,98585.0,0.18084309]
[1732525788091,0.0316,98592.0,98580.0,0.40075032]
[1732525788092,0.09099752,98590.0,98588.0,0.050665]
[1732525788483,0.004,98595.0,98589.0,0.3608]
[1732525788689,0.004,98595.0,98594.0,0.050662]
[1732525790797,0.0245299,98595.0,98594.0,0.050662]
[1732525791397,0.01392081,98595.0,98594.0,0.050662]
[1732525791609,0.02451462,98595.0,98594.0,0.050662]
[1732525795402,0.17617674,98595.0,98594.0,0.050662]
[1732525795594,0.02451462,98595.0,98594.0,0.050662]
[1732525796189,0.17605597,98595.0,98594.0,0.050662]
[1732525796697,0.02451462,98595.0,98594.0,0.050662]
[1732525798203,0.02476067,98595.0,98594.0,0.050662]
[1732525799202,0.04104167,98595.0,98594.0,0.050662]
[1732525799400,0.04114258,98595.0,98594.0,0.050662]
[1732525799601,0.19268393,98595.0,98594.0,0.050662]
[1732525800097,0.19268393,98595.0,98593.0,0.0469336]
[1732525800098,0.09180358,98595.0,98593.0,0.00811]
[1732525800303,0.11911965,98594.0,98593.0,0.00811]
[1732525800606,0.11911965,98594.0,98590.0,0.050663]
[1732525800899,0.11911965,98594.0,98580.0,0.3608]
[1732525800900,0.18186732,98592.0,98591.0,0.050663]
[1732525801204,0.26828697,98592.0,98591.0,0.050663]
[1732525801394,0.08641965,98592.0,98591.0,0.050663]
[1732525802499,0.13708265,98592.0,98586.0,0.050666]
[1732525802705,0.18191432,98588.0,98586.0,0.050666]
[1732525803007,0.0327,98594.0,98586.0,0.050666]
[1732525803008,0.06914258,98587.0,98586.0,0.050666]
[1732525805008,0.02086964,98587.0,98586.0,0.050666]
[1732525805307,0.02086964,98587.0,98586.0,0.181986]
[1732525805694,0.01076964,98587.0,98586.0,0.196066]
[1732525808102,0.01076964,98587.0,98586.0,0.37692319]
[1732525808302,0.01017058,98587.0,98586.0,0.377106]
[1732525808502,0.01017058,98587.0,98586.0,0.196066]
[1732525809005,0.0325,98587.0,98586.0,0.064746]
[1732525809301,0.12346663,98587.0,98586.0,0.064746]
[1732525810006,0.0325,98587.0,98586.0,0.064746]
[1732525810403,0.12356375,98587.0,98586.0,0.064746]
[1732525810604,0.0325,98587.0,98586.0,0.064746]
[1732525811318,0.12356452,98587.0,98586.0,0.064746]
[1732525812720,0.0325,98587.0,98586.0,0.064746]
[1732525812923,0.0325,98587.0,98586.0,0.24578789]
[1732525813434,0.0325,98587.0,98586.0,0.24584837]
[1732525814156,0.0325,98587.0,98586.0,0.064746]
[1732525814339,0.0325,98587.0,98586.0,0.2458551]
[1732525815039,0.0325,98587.0,98586.0,0.064746]
[1732525815231,0.004,98588.0,98586.0,0.064746]
[1732525815431,0.004,98588.0,98587.0,0.18111281]
[1732525815836,0.004,98590.0,98588.0,0.050667]
[1732525816540,0.004,98590.0,98588.0,0.23177305]
[1732525817137,0.12527656,98590.0,98588.0,0.050667]
[1732525817342,0.12527656,98590.0,98588.0,0.23177305]
[1732525818024,0.12527656,98590.0,98588.0,0.050667]
[1732525818025,0.04928034,98589.0,98588.0,0.050667]
[1732525818722,0.04927886,98589.0,98588.0,0.050667]
[1732525818906,0.004,98590.0,98588.0,0.050667]
[1732525819112,0.15180442,98589.0,98588.0,0.050667]
[1732525819415,0.15180812,98589.0,98588.0,0.050667]
[1732525819617,0.04927904,98589.0,98588.0,0.050667]
[1732525819813,0.15580792,98590.0,98588.0,0.050667]
[1732525820007,0.004,98590.0,98588.0,0.050667]
[1732525820409,0.004,98590.0,98589.0,0.0301]
[1732525821917,0.15180792,98591.0,98589.0,0.0301]
[1732525821918,0.15180792,98592.0,98590.0,0.050666]
[1732525822512,0.14170792,98592.0,98590.0,0.050666]
[1732525822713,0.04927792,98591.0,98590.0,0.050666]
[1732525822922,0.3608,98599.0,98590.0,0.050666]
[1732525822923,0.18191432,98592.0,98590.0,0.050666]
[1732525823217,0.23147921,98591.0,98586.0,0.01408]
[1732525823411,0.04927966,98590.0,98589.0,0.050667]
[1732525823607,0.18219955,98592.0,98586.0,0.01408]
[1732525824019,0.04927966,98591.0,98586.0,0.01408]
[1732525824319,0.04927966,98590.0,98587.0,0.00316832]
[1732525824543,0.0326,98604.0,98595.0,0.050664]
[1732525824713,0.04927847,98603.0,98595.0,0.050664]
[1732525824907,0.18220508,98596.0,98595.0,0.050664]
[1732525825113,0.09110049,98597.0,98595.0,0.050664]
[1732525825315,0.09110049,98597.0,98595.0,0.23175321]
[1732525825512,0.09110049,98597.0,98595.0,0.23175513]
[1732525825513,0.0911035,98597.0,98595.0,0.23175513]
[1732525825712,0.0911035,98597.0,98596.0,0.18109113]
[1732525825915,0.0911035,98597.0,98595.0,0.23175513]
[1732525826109,0.0911035,98597.0,98596.0,0.18109113]
[1732525826320,0.0911035,98597.0,98596.0,0.2317532]
[1732525826321,0.09110514,98597.0,98596.0,0.2317532]
[1732525826625,0.09110514,98598.0,98596.0,0.2317532]
[1732525826810,0.12146665,98602.0,98596.0,0.2317532]
[1732525826811,0.09110514,98597.0,98596.0,0.2317532]
[1732525827833,0.09110514,98598.0,98596.0,0.2317532]
[1732525828425,0.09110514,98597.0,98596.0,0.23176158]
[1732525829014,0.09110514,98597.0,98596.0,0.050663]
[1732525829525,0.12146665,98599.0,98596.0,0.050663]
[1732525829722,0.08326,98604.0,98596.0,0.050663]
[1732525829723,0.12146665,98600.0,98596.0,0.050663]
[1732525829924,0.12146665,98599.0,98595.0,0.03927092]
[1732525830117,0.08326,98604.0,98586.0,0.1454]
[1732525830118,0.12146665,98601.0,98599.0,0.050662]
[1732525830422,0.12146665,98600.0,98599.0,0.23176635]
[1732525830727,0.0326,98604.0,98600.0,0.050661]
[1732525830921,0.0326,98604.0,98600.0,0.23177007]
[1732525831223,0.0326,98604.0,98601.0,0.18110907]
[1732525831419,0.0326,98604.0,98600.0,0.050661]
[1732525831420,0.0326,98604.0,98600.0,0.18110907]
[1732525831722,0.0326,98604.0,98601.0,0.18110907]
[1732525831936,0.0326,98604.0,98602.0,0.23176907]
[1732525832222,0.0326,98604.0,98603.0,0.00316806]
[1732525832626,0.3608,98608.0,98607.0,0.050658]
[1732525833115,0.41007412,98608.0,98607.0,0.050658]
[1732525834221,0.04927412,98608.0,98607.0,0.050658]
[1732525834528,0.04927099,98610.0,98603.0,0.43783052]
[1732525834821,0.18224844,98605.0,98603.0,0.12769052]
[1732525835025,0.23151943,98604.0,98603.0,0.12769052]
[1732525835225,0.04927099,98604.0,98603.0,0.12769052]
[1732525835630,0.3608,98617.0,98603.0,0.07716159]
[1732525835631,0.18224844,98611.0,98603.0,0.07716159]
[1732525835830,0.18224844,98612.0,98611.0,0.050656]
[1732525836121,0.04926909,98612.0,98611.0,0.050656]
[1732525836323,0.04926909,98612.0,98609.0,0.13128]
[1732525836523,0.04926857,98611.0,98610.0,0.050656]
[1732525836730,0.18214156,98613.0,98610.0,0.050656]
[1732525837027,0.18214156,98613.0,98612.0,0.050655]
[1732525837223,0.04926869,98613.0,98612.0,0.050655]
[1732525837424,0.18214156,98615.0,98609.0,0.13128]
[1732525837828,0.18214156,98615.0,98614.0,0.050654]
[1732525838219,0.04926869,98615.0,98614.0,0.050654]
[1732525838924,0.04926869,98616.0,98614.0,0.050654]
[1732525839122,0.54346157,98617.0,98614.0,0.050654]
[1732525839123,0.04926869,98615.0,98614.0,0.050654]
[1732525839328,0.54294156,98617.0,98616.0,0.050653]
[1732525839628,0.18214156,98624.0,98623.0,0.050649]
[1732525840123,0.09099679,98625.0,98623.0,0.050649]
[1732525840324,0.09099679,98625.0,98617.0,0.3608]
[1732525840525,0.48264906,98630.0,98617.0,0.3608]
[1732525840733,0.12132905,98629.0,98628.0,0.050647]
[1732525840922,0.3608,98630.0,98628.0,0.050647]
[1732525840923,0.48212905,98630.0,98628.0,0.050647]
[1732525841127,0.3608,98630.0,98628.0,0.050647]
[1732525841424,0.3608,98630.0,98615.0,0.13128]
[1732525841634,0.09094171,98626.0,98615.0,0.13128]
[1732525841909,0.09094171,98626.0,98616.0,0.0891363]
[1732525842129,0.09094171,98626.0,98615.0,0.13128]
[1732525842130,0.09094171,98625.0,98624.0,0.050649]
[1732525842317,0.12132905,98629.0,98628.0,0.050647]
[1732525842521,0.3608,98630.0,98628.0,0.050647]
[1732525842731,0.48212905,98630.0,98628.0,0.050647]
[1732525843031,0.12132905,98629.0,98628.0,0.050647]
[1732525843224,0.3507,98630.0,98628.0,0.050647]
[1732525844027,0.09091033,98629.0,98628.0,0.050647]
[1732525844329,0.09089665,98629.0,98628.0,0.050647]
[1732525845243,0.09089674,98629.0,98628.0,0.050647]
[1732525845625,0.3507,98630.0,98628.0,0.050647]
[1732525845935,0.09088851,98629.0,98628.0,0.050647]
[1732525846137,0.44158851,98630.0,98628.0,0.09015826]
[1732525846835,0.09088851,98629.0,98628.0,0.09015826]
[1732525847033,0.44158851,98630.0,98628.0,0.09015826]
[1732525848281,0.23140487,98629.0,98628.0,0.02099773]
[1732525848441,0.23140487,98629.0,98618.0,0.3608]
[1732525848738,0.3507,98630.0,98618.0,0.3608]
[1732525848739,0.18214156,98626.0,98618.0,0.3608]
[1732525848931,0.04926331,98625.0,98624.0,0.050649]
[1732525851642,0.04926331,98626.0,98624.0,0.050649]
[1732525851832,0.050651,98621.0,98618.0,0.39991848]
[1732525852138,0.04926519,98620.0,98618.0,0.03911848]
[1732525852333,0.04926519,98620.0,98617.0,0.050652]
[1732525852533,0.04926519,98619.0,98617.0,0.050652]
[1732525852933,0.04926519,98619.0,98618.0,0.01411]
[1732525854439,0.05065,98623.0,98618.0,0.01411]
[1732525854743,0.04926519,98622.0,98618.0,0.01411]
[1732525855130,0.04926519,98622.0,98621.0,0.050651]
[1732525855332,0.050649,98625.0,98621.0,0.050651]
[1732525855737,0.17188272,98625.0,98621.0,0.050651]
[1732525855942,0.050649,98624.0,98621.0,0.050651]
[1732525856639,0.12123372,98625.0,98621.0,0.050651]
[1732525856838,0.12123372,98625.0,98618.0,0.01411]
[1732525856839,0.05065,98622.0,98618.0,0.01411]
[1732525857545,0.17188372,98622.0,98618.0,0.064762]
[1732525857948,0.12123372,98622.0,98620.0,0.050651]
[1732525859133,0.12123372,98621.0,98620.0,0.050651]
[1732525859642,0.12123372,98621.0,98620.0,0.058761]
[1732525860044,0.12123372,98622.0,98620.0,0.058761]
[1732525860250,0.17199348,98621.0,98620.0,0.00811]
[1732525860447,0.20439387,98621.0,98620.0,0.00811]
[1732525860649,0.050652,98619.0,98618.0,0.01411]
[1732525861041,0.4041249,98619.0,98618.0,0.01411]
[1732525861248,0.4374249,98619.0,98618.0,0.01411]
[1732525862341,0.050655,98612.0,98611.0,0.0397898]
[1732525862661,0.050657,98609.0,98603.0,0.00013107]
[1732525862948,0.3608,98604.0,98603.0,0.00013107]
[1732525863542,0.3608,98604.0,98603.0,0.04015189]
[1732525863741,0.3608,98604.0,98603.0,0.00013107]
[1732525865453,0.48213506,98604.0,98603.0,0.00013107]
[1732525866652,0.3608,98604.0,98603.0,0.00013107]
[1732525866844,0.12131158,98607.0,98604.0,0.050659]
[1732525867049,0.15171665,98616.0,98604.0,0.050659]
[1732525867050,0.09097753,98611.0,98610.0,0.050656]
[1732525867348,0.09097753,98618.0,98610.0,0.13296]
[1732525867549,0.09097753,98619.0,98618.0,0.050652]
[1732525867742,0.09097753,98619.0,98611.0,0.0331]
[1732525867953,0.09096599,98617.0,98611.0,0.0331]
[1732525868158,0.48211158,98622.0,98617.0,0.050653]
[1732525868159,0.36132001,98622.0,98617.0,0.050653]
[1732525868353,0.09096521,98618.0,98611.0,0.0331]
[1732525868654,0.12131158,98623.0,98617.0,0.3608]
[1732525868655,0.09096521,98623.0,98617.0,0.3608]
[1732525868861,0.050643,98637.0,98622.0,0.05065]
[1732525868862,0.09096521,98624.0,98622.0,0.05065]
[1732525869149,0.050643,98637.0,98624.0,0.050649]
[1732525869150,0.09096521,98625.0,98624.0,0.050649]
[1732525869354,0.12131158,98629.0,98628.0,0.050647]
[1732525869762,0.050645,98632.0,98628.0,0.050647]
[1732525870151,0.050646,98630.0,98622.0,0.05065]
[1732525870348,0.050646,98630.0,98617.0,0.3608]
[1732525870349,0.23270599,98630.0,98617.0,0.3608]
[1732525870549,0.15159716,98621.0,98620.0,0.050651]
[1732525870753,0.04926428,98621.0,98620.0,0.050651]
[1732525870964,0.04926428,98622.0,98620.0,0.050651]
[1732525871265,0.04926428,98621.0,98620.0,0.050651]
[1732525871659,0.18205999,98621.0,98620.0,0.050651]
[1732525871846,0.04926428,98621.0,98620.0,0.050651]
[1732525872057,0.18205999,98621.0,98620.0,0.050651]
[1732525872461,0.23132427,98621.0,98620.0,0.050651]
[1732525872653,0.04926428,98621.0,98620.0,0.050651]
[1732525872960,0.18205999,98621.0,98620.0,0.050651]
[1732525873163,0.23132427,98621.0,98620.0,0.050651]
[1732525873476,0.04926428,98621.0,98620.0,0.050651]
[1732525873854,0.04926428,98622.0,98620.0,0.050651]
[1732525874361,0.18193761,98621.0,98620.0,0.050651]
[1732525874549,0.18194582,98621.0,98620.0,0.050651]
[1732525875156,0.04926428,98621.0,98620.0,0.050651]
[1732525875951,0.2312101,98621.0,98620.0,0.050651]
[1732525876147,0.18194582,98621.0,98620.0,0.050651]
[1732525877059,0.04926428,98621.0,98620.0,0.050651]
[1732525877461,0.18194582,98623.0,98622.0,0.05065]
[1732525877961,0.04926607,98623.0,98622.0,0.05065]
[1732525878256,0.48211492,98626.0,98622.0,0.05065]
[1732525878461,0.48211492,98626.0,98618.0,0.00505]
[1732525878667,0.09098905,98622.0,98618.0,0.00505]
[1732525879056,0.050651,98620.0,98618.0,0.00505]
[1732525879255,0.183611,98620.0,98618.0,0.00505]
[1732525879572,0.62418953,98619.0,98618.0,0.00505]
[1732525879754,0.50286,98619.0,98618.0,0.00505]
[1732525880018,0.65450365,98619.0,98618.0,0.00505]
[1732525880158,0.65453698,98619.0,98618.0,0.00505]
[1732525880363,0.55213362,98619.0,98618.0,0.00505]
[1732525880756,0.50286,98619.0,98618.0,0.00505]
[1732525881759,0.19866,98619.0,98618.0,0.00505]
[1732525882964,0.3608,98621.0,98618.0,0.00505]
[1732525882965,0.3608,98621.0,98619.0,0.050651]
[1732525883166,0.48213078,98621.0,98619.0,0.050651]
[1732525883643,0.3608,98621.0,98619.0,0.050651]
[1732525883765,0.3608,98621.0,98618.0,0.00505]
[1732525883958,0.411451,98621.0,98618.0,0.00505]
[1732525885071,0.48213078,98621.0,98618.0,0.00505]
[1732525885374,0.3608,98621.0,98620.0,0.050651]
[1732525886170,0.48212604,98621.0,98620.0,0.050651]
[1732525886466,0.0891363,98632.0,98615.0,0.13296]
[1732525886467,0.15167583,98630.0,98628.0,0.050647]
[1732525886670,0.15167583,98634.0,98631.0,0.050645]
[1732525886862,0.15167583,98636.0,98631.0,0.050645]
[1732525887067,0.15167583,98636.0,98632.0,0.050645]
[1732525887268,0.56311783,98637.0,98632.0,0.050645]
[1732525887668,0.411442,98637.0,98632.0,0.050645]
[1732525887868,0.411442,98637.0,98619.0,0.18070673]
[1732525887869,0.3608,98637.0,98619.0,0.18070673]
[1732525888068,0.09098081,98626.0,98624.0,0.050649]
[1732525888566,0.09098081,98626.0,98619.0,0.04893629]
[1732525888773,0.09098081,98625.0,98624.0,0.050649]
[1732525889184,0.09098081,98626.0,98624.0,0.050649]
[1732525890071,0.09098081,98625.0,98624.0,0.050649]
[1732525890477,0.12130775,98630.0,98628.0,0.050647]
[1732525892476,0.12130775,98629.0,98628.0,0.050647]
[1732525892679,0.050643,98635.0,98628.0,0.050647]
[1732525892680,0.12130775,98630.0,98628.0,0.050647]
[1732525892967,0.12130775,98629.0,98628.0,0.050647]
[1732525893167,0.050643,98635.0,98628.0,0.050647]
[1732525893168,0.12130775,98630.0,98628.0,0.050647]
[1732525893377,0.04926349,98629.0,98628.0,0.050647]
[1732525893967,0.04926349,98629.0,98628.0,0.05313156]
[1732525894174,0.04926349,98629.0,98628.0,0.10377856]
[1732525894872,0.04926349,98634.0,98633.0,0.050644]
[1732525895071,0.0324,98636.0,98635.0,0.01263657]
[1732525895285,0.0324,98636.0,98628.0,0.05313156]
[1732525895286,0.08166298,98636.0,98628.0,0.05313156]
[1732525895468,0.29401498,98636.0,98628.0,0.05313156]
[1732525895768,0.04926298,98635.0,98628.0,0.05313156]
[1732525896369,0.04926298,98635.0,98634.0,0.050644]
[1732525898669,0.04926298,98635.0,98633.0,0.050644]
[1732525898972,0.04926298,98634.0,98633.0,0.050644]
[1732525899277,0.04926298,98634.0,98632.0,0.0315]
[1732525899477,0.04925809,98633.0,98632.0,0.082145]
[1732525899775,0.00010248,98647.0,98642.0,0.05064]
[1732525899776,0.26159289,98643.0,98642.0,0.05064]
[1732525899972,0.04925903,98643.0,98642.0,0.05064]
[1732525900169,0.21243634,98647.0,98646.0,0.050638]
[1732525900170,0.00010248,98647.0,98646.0,0.050638]
[1732525902230,0.09106231,98647.0,98646.0,0.05070953]
[1732525902366,0.00010248,98647.0,98646.0,0.09994255]
[1732525902569,0.00010248,98647.0,98646.0,0.40406255]
[1732525902768,0.12127814,98655.0,98647.0,0.30412]
[1732525902969,0.15171564,98665.0,98664.0,0.050628]
[1732525903172,5e-05,98665.0,98664.0,0.183108]
[1732525904480,5e-05,98665.0,98664.0,0.487188]
[1732525905477,5e-05,98665.0,98664.0,0.183108]
[1732525906182,5e-05,98665.0,98664.0,0.487188]
[1732525906382,5e-05,98665.0,98664.0,0.53502298]
[1732525906874,5e-05,98665.0,98664.0,0.64957375]
[1732525907776,0.01007095,98665.0,98664.0,0.64957375]
[1732525908168,5e-05,98665.0,98664.0,0.64957375]
[1732525908375,5e-05,98665.0,98664.0,0.51709375]
[1732525908575,5e-05,98665.0,98664.0,0.23094298]
[1732525910280,5e-05,98665.0,98664.0,0.09846298]
[1732525910578,0.01055131,98665.0,98664.0,0.23094298]
[1732525910782,0.01055131,98665.0,98664.0,0.09846298]
[1732525911082,0.01055131,98665.0,98664.0,0.23094298]
[1732525911483,5e-05,98665.0,98664.0,0.23094298]
[1732525913110,5e-05,98665.0,98664.0,0.09846298]
[1732525913276,5e-05,98665.0,98664.0,0.23090298]
[1732525913579,5e-05,98665.0,98664.0,0.53498298]
[1732525914385,0.51246564,98675.0,98664.0,0.23090298]
[1732525914386,0.01017093,98674.0,98664.0,0.23090298]
[1732525914580,0.01017093,98674.0,98673.0,0.050624]
[1732525914581,0.06079393,98674.0,98673.0,0.050624]
[1732525914883,0.06079393,98674.0,98673.0,0.183064]
[1732525915780,0.06079393,98674.0,98673.0,0.050624]
[1732525915979,0.06079393,98674.0,98673.0,0.183064]
[1732525916382,0.06079393,98674.0,98664.0,0.04783498]
[1732525916383,0.01017093,98674.0,98664.0,0.04783498]
[1732525916582,0.050626,98669.0,98665.0,0.13244]
[1732525916785,0.01017093,98668.0,98665.0,0.13244]
[1732525917087,0.01017093,98668.0,98667.0,0.050626]
[1732525917282,0.01017093,98668.0,98667.0,0.183066]
[1732525917481,0.0315,98673.0,98671.0,0.050625]
[1732525917678,0.01009469,98672.0,98671.0,0.050625]
[1732525918283,0.01009469,98672.0,98663.0,0.40939761]
[1732525918284,0.050625,98671.0,98663.0,0.40939761]
[1732525918473,0.01009469,98670.0,98664.0,0.13244]
[1732525918678,0.04229469,98670.0,98668.0,0.050626]
[1732525918883,0.01009469,98669.0,98668.0,0.050626]
[1732525919586,0.35025,98675.0,98673.0,0.050624]
[1732525919785,0.35025,98675.0,98674.0,0.13128]
[1732525919990,0.36044605,98675.0,98674.0,0.13128]
[1732525920484,0.3605777,98675.0,98674.0,0.13128]
[1732525920681,0.35025,98675.0,98674.0,0.13128]
[1732525920909,0.3605777,98675.0,98674.0,0.13128]
[1732525924086,0.3605777,98675.0,98674.0,0.13632]
[1732525924715,0.3605777,98675.0,98674.0,0.00504]
[1732525925025,0.3605777,98675.0,98655.0,0.3608]
[1732525925230,0.3605777,98675.0,98653.0,0.00152024]
[1732525925231,0.3608,98665.0,98662.0,0.050629]
[1732525925516,0.0719277,98664.0,98662.0,0.050629]
[1732525925811,0.0103277,98663.0,98662.0,0.050629]
[1732525926199,0.01005527,98663.0,98662.0,0.411429]
[1732525926491,0.50154924,98675.0,98672.0,0.050624]
[1732525926701,0.01010362,98674.0,98673.0,0.181864]
[1732525927603,0.16140286,98674.0,98673.0,0.181864]
[1732525927797,0.15129924,98675.0,98674.0,0.30404]
[1732525928092,4.054e-05,98697.0,98696.0,0.050612]
[1732525928388,4.054e-05,98697.0,98696.0,0.29392616]
[1732525928589,4.054e-05,98697.0,98696.0,0.59788616]
[1732525928793,4.054e-05,98697.0,98696.0,0.89788616]
[1732525928990,4.054e-05,98697.0,98696.0,0.8979623]
[1732525929188,4.054e-05,98697.0,98696.0,0.7667223]
[1732525929494,4.054e-05,98697.0,98696.0,0.8979623]
[1732525929888,0.18199876,98716.0,98696.0,0.8979623]
[1732525929889,0.17369876,98719.0,98718.0,0.050601]
[1732525930191,0.0891363,98730.0,98718.0,0.49216296]
[1732525930518,0.13281072,98729.0,98727.0,0.3608]
[1732525930594,0.083595,98729.0,98727.0,0.3108]
[1732525930792,0.3608,98728.0,98718.0,0.36092296]
[1732525930994,0.0506,98721.0,98718.0,0.36092296]
[1732525931297,0.0305,98720.0,98718.0,0.41152296]
[1732525932717,0.0305,98720.0,98719.0,0.13124]
[1732525933320,0.0305,98720.0,98719.0,0.54704202]
[1732525933504,0.01572841,98720.0,98719.0,0.54704202]